fUSD/lending_fUSD_20260405
["ID","MTS","AMOUNT","RATE_DAILY","PERIOD"]
[419832043,1775404252808,-150.0,0.00015742,2]
[419832044,1775404252818,-150.0,0.00015743,2]
[419832045,1775404252828,-1000.0,0.00015743,2]
[419832046,1775404252839,-1000.0,0.00015746,2]
[419832047,1775404252849,-150.0,0.00015747,2]
[419832048,1775404252860,-150.0,0.00015747,2]
[419832049,1775404252871,-5888.0,0.00015749,2]
[419832050,1775404252881,-150.0,0.00015751,2]
[419832051,1775404252892,-150.0,0.00015751,2]
[419832052,1775404252902,-150.0,0.00015752,2]
[419832053,1775404252912,-5957.33,0.00015753,2]
[419832054,1775404252923,-150.0,0.00015754,2]
[419832055,1775404252933,-150.0,0.00015754,2]
[419832056,1775404252943,-433.16765094,0.00015758,2]
[419832057,1775404252952,-1000.0,0.00015769,2]
[419832058,1775404252965,-150.0,0.00015771,2]
[419832059,1775404252977,-150.0,0.00015771,2]
[419832060,1775404252987,-150.0,0.00015771,2]
[419832061,1775404252996,-150.0,0.00015775,2]
[419832062,1775404253006,-150.0,0.00015775,2]
[419832063,1775404253016,-150.0,0.00015775,2]
[419832064,1775404253025,-232.00123994,0.00015776,2]
[419832065,1775404253035,-150.0,0.00015789,2]
[419832066,1775404253045,-757.62285791,0.0001579,2]
[419832067,1775404253056,-235.56668722,0.00015792,2]
[419832068,1775404253065,-150.0,0.00015792,2]
[419832069,1775404253075,-150.0,0.00015794,2]
[419832070,1775404253085,-1214.88474644,0.00015797,2]
[419832071,1775404253096,-150.0,0.00015797,2]
[419832072,1775404253106,-350.0,0.00015798,2]
[419832073,1775404253117,-892.448042,0.00015799,2]
[419832074,1775404253128,-892.448042,0.00015799,2]
[419832075,1775404253139,-892.448042,0.00015799,2]
[419832076,1775404253149,-892.448042,0.00015799,2]
[419832077,1775404253159,-578.20924308,0.00015799,3]
[419832078,1775404253169,-599.60298507,0.00015799,3]
[419832079,1775404253178,-621.78829552,0.00015799,3]
[419832080,1775404253188,-644.79446246,0.00015799,3]
[419832081,1775404253197,-500.0,0.00015799,3]
[419832082,1775404253207,-200.0,0.00015799,3]
[419832083,1775404253218,-1377.42282659,0.00015799,3]
[419832084,1775404253228,-668.65185757,0.00015799,3]
[419832085,1775404253238,-500.0,0.00015799,3]
[419832086,1775404253248,-201.93286099,0.00015799,3]
[419832087,1775404253259,-200.0,0.00015799,3]
[419832088,1775404253268,-500.0,0.00015799,3]
[419832089,1775404253278,-695.39793187,0.00015799,3]
[419832090,1775404253288,-693.3919763,0.00015799,3]
[419832091,1775404253298,-500.0,0.00015799,3]
[419832092,1775404253308,-209.40437684,0.00015799,3]
[419832093,1775404253317,-200.0,0.00015799,3]
[419832094,1775404253327,-500.0,0.00015799,3]
[419832095,1775404253337,-721.12765535,0.00015799,3]
[419832096,1775404253347,-719.04747942,0.00015799,3]
[419832097,1775404253357,-500.0,0.00015799,3]
[419832098,1775404253367,-217.15233878,0.00015799,3]
[419832099,1775404253377,-200.0,0.00015799,3]
[419832100,1775404253386,-500.0,0.00015799,3]
[419832101,1775404253396,-747.8093786,0.00015799,3]
[419832102,1775404253406,-745.65223616,0.00015799,3]
[419832103,1775404253416,-500.0,0.00015799,3]
[419832104,1775404253428,-225.18697532,0.00015799,3]
[419832105,1775404253438,-200.0,0.00015799,3]
[419832106,1775404253447,-500.0,0.00015799,3]
[419832107,1775404253457,-775.47832561,0.00015799,3]
[419832108,1775404253467,-773.2413689,0.00015799,3]
[419832109,1775404253477,-500.0,0.00015799,3]
[419832110,1775404253487,-233.51889341,0.00015799,3]
[419832111,1775404253497,-804.17102365,0.00015799,3]
[419832112,1775404253508,-500.0,0.00015799,3]
[419832113,1775404253519,-801.85129955,0.00015799,3]
[419832114,1775404253530,-500.0,0.00015799,3]
[419832115,1775404253539,-301.04884516,0.00015799,3]
[419832116,1775404253549,-151.0,0.00015799,3]
[419832117,1775404253559,-500.0,0.00015799,3]
[419832118,1775404253568,-500.0,0.00015799,3]
[419832119,1775404253578,-833.92535153,0.00015799,3]
[419832120,1775404253587,-831.51979763,0.00015799,3]
[419832121,1775404253597,-500.0,0.00015799,3]
[419832122,1775404253607,-151.0,0.00015799,3]
[419832123,1775404253616,-864.78058953,0.00015799,3]
[419832124,1775404253626,-500.0,0.00015799,3]
[419832125,1775404253635,-500.0,0.00015799,3]
[419832126,1775404253645,-500.0,0.00015799,3]
[419832127,1775404253654,-862.28603014,0.00015799,3]
[419832128,1775404253664,-151.0,0.00015799,3]
[419832129,1775404253673,-896.77747135,0.00015799,3]
[419832130,1775404253683,-500.0,0.00015799,3]
[419832131,1775404253692,-500.0,0.00015799,3]
[419832132,1775404253702,-500.0,0.00015799,3]
[419832133,1775404253712,-894.19061326,0.00015799,3]
[419832134,1775404253723,-151.0,0.00015799,3]
[419832135,1775404253733,-929.95823779,0.00015799,3]
[419832136,1775404253743,-500.0,0.00015799,3]
[419832137,1775404253752,-500.0,0.00015799,3]
[419832138,1775404253763,-500.0,0.00015799,3]
[419832139,1775404253772,-927.27566595,0.00015799,3]
[419832140,1775404253782,-154.76515316,0.00015799,3]
[419832141,1775404253791,-964.36669259,0.00015799,3]
[419832142,1775404253801,-500.0,0.00015799,3]
[419832143,1775404253811,-500.0,0.00015799,3]
[419832144,1775404253820,-500.0,0.00015799,3]
[419832145,1775404253830,-500.0,0.00015799,3]
[419832146,1775404253839,-1000.04826021,0.00015799,3]
[419832147,1775404253848,-200.0,0.00015799,3]
[419832148,1775404253858,-1428.38747117,0.00015799,3]
[419832149,1775404253868,-500.0,0.00015799,3]
[419832150,1775404253876,-1037.05004584,0.00015799,3]
[419832151,1775404253886,-500.0,0.00015799,3]
[419832152,1775404253895,-200.0,0.00015799,3]
[419832153,1775404253905,-1000.0,0.00015799,3]
[419832154,1775404253914,-9211.34798985,0.00015799,3]
[419832155,1775404253924,-1481.23780761,0.00015799,3]
[419832156,1775404253934,-500.0,0.00015799,3]
[419832157,1775404253943,-500.0,0.00015799,3]
[419832158,1775404253952,-200.0,0.00015799,3]
[419832159,1775404253961,-1000.0,0.00015799,3]
[419832160,1775404253971,-9552.16786547,0.00015799,3]
[419832161,1775404253980,-500.0,0.00015799,3]
[419832162,1775404253989,-1536.04360649,0.00015799,3]
[419832163,1775404253999,-200.0,0.00015799,3]
[419832164,1775404254009,-9905.5980765,0.00015799,3]
[419832165,1775404254018,-1000.0,0.00015799,3]
[419832166,1775404254028,-200.0,0.00015799,3]
[419832167,1775404254037,-500.0,0.00015799,3]
[419832168,1775404254047,-1592.87721993,0.00015799,3]
[419832169,1775404254087,-200.0,0.00015799,3]
[419832170,1775404254096,-1000.0,0.00015799,3]
[419832171,1775404254106,-10272.10520533,0.00015799,3]
[419832172,1775404254116,-200.0,0.00015799,3]
[419832173,1775404254130,-1651.81367706,0.00015799,3]
[419832174,1775404254139,-500.0,0.00015799,3]
[419832175,1775404254149,-200.0,0.00015799,3]
[419832176,1775404254159,-1000.0,0.00015799,3]
[419832177,1775404254168,-10652.17309792,0.00015799,3]
[419832178,1775404254178,-200.0,0.00015799,3]
[419832179,1775404254189,-1712.93078312,0.00015799,3]
[419832180,1775404254200,-500.0,0.00015799,3]
[419832181,1775404254212,-200.0,0.00015799,3]
[419832182,1775404254222,-5850.7516326,0.00015799,3]
[419832183,1775404254233,-1000.0,0.00015799,3]
[419832184,1775404254242,-1776.30922209,0.00015799,3]
[419832185,1775404254252,-500.0,0.00015799,3]
[419832186,1775404254262,-1000.0,0.00015799,3]
[419832187,1775404254272,-200.0,0.00015799,3]
[419832188,1775404254282,-1842.03266331,0.00015799,3]
[419832189,1775404254291,-500.0,0.00015799,3]
[419832190,1775404254301,-1000.0,0.00015799,3]
[419832191,1775404254311,-200.0,0.00015799,3]
[419832192,1775404254321,-1910.18787185,0.00015799,3]
[419832193,1775404254332,-500.0,0.00015799,3]
[419832194,1775404254345,-200.0,0.00015799,3]
[419832195,1775404254355,-1980.86482311,0.00015799,3]
[419832196,1775404254365,-1000.0,0.00015799,3]
[419832197,1775404254375,-200.0,0.00015799,3]
[419832198,1775404254385,-2054.15682157,0.00015799,3]
[419832199,1775404254395,-1000.0,0.00015799,3]
[419832200,1775404254407,-200.0,0.00015799,3]
[419832201,1775404254416,-151.0,0.00015799,3]
[419832202,1775404254427,-1000.0,0.00015799,3]
[419832203,1775404254437,-200.0,0.00015799,3]
[419832204,1775404254556,-151.0,0.00015799,3]
[419832205,1775404254566,-1000.0,0.00015799,3]
[419832206,1775404254575,-201.93286099,0.00015799,3]
[419832207,1775404254584,-151.0,0.00015799,3]
[419832208,1775404254594,-209.40437684,0.00015799,3]
[419832209,1775404254604,-151.0,0.00015799,3]
[419832210,1775404254614,-339.62894544,0.00015799,3]
[419832211,1775404254624,-151.0,0.00015799,3]
[419832212,1775404254634,-151.0,0.00015799,3]
[419832213,1775404254644,-151.0,0.00015799,3]
[419832214,1775404254653,-3000.0,0.00015799,3]
[419832215,1775404254663,-151.0,0.00015799,3]
[419832216,1775404254673,-3000.0,0.00015799,3]
[419832217,1775404254682,-151.0,0.00015799,3]
[419832218,1775404254691,-3000.0,0.00015799,3]
[419832219,1775404254700,-151.0,0.00015799,3]
[419832220,1775404254710,-3000.0,0.00015799,3]
[419832221,1775404254721,-174.61919141,0.00015799,3]
[419832222,1775404254730,-3000.0,0.00015799,3]
[419832223,1775404254739,-151.0,0.00015799,3]
[419832224,1775404254749,-181.08010149,0.00015799,3]
[419832225,1775404254758,-3000.0,0.00015799,3]
[419832226,1775404254768,-151.0,0.00015799,3]
[419832227,1775404254777,-187.78006525,0.00015799,3]
[419832228,1775404254787,-743.50770149,0.00015799,3]
[419832229,1775404254796,-3000.0,0.00015799,3]
[419832230,1775404254806,-151.0,0.00015799,3]
[419832231,1775404254817,-194.72792766,0.00015799,3]
[419832232,1775404254827,-771.01748645,0.00015799,3]
[419832233,1775404254838,-3000.0,0.00015799,3]
[419832234,1775404254849,-201.93286099,0.00015799,3]
[419832235,1775404254858,-151.0,0.00015799,3]
[419832236,1775404254867,-799.54513345,0.00015799,3]
[419832237,1775404254877,-3000.0,0.00015799,3]
[419832238,1775404254887,-209.40437684,0.00015799,3]
[419832239,1775404254896,-151.0,0.00015799,3]
[419832240,1775404254905,-829.12830338,0.00015799,3]
[419832241,1775404254915,-3000.0,0.00015799,3]
[419832242,1775404254924,-217.15233878,0.00015799,3]
[419832243,1775404254933,-151.0,0.00015799,3]
[419832244,1775404254943,-859.80605061,0.00015799,3]
[419832245,1775404254953,-3000.0,0.00015799,3]
[419832246,1775404254963,-225.18697532,0.00015799,3]
[419832247,1775404254973,-151.0,0.00015799,3]
[419832248,1775404254983,-891.61887448,0.00015799,3]
[419832249,1775404254992,-3000.0,0.00015799,3]
[419832250,1775404255004,-233.51889341,0.00015799,3]
[419832251,1775404255013,-151.0,0.00015799,3]
[419832252,1775404255023,-924.60877284,0.00015799,3]
[419832253,1775404255032,-242.15909246,0.00015799,3]
[419832254,1775404255042,-151.0,0.00015799,3]
[419832255,1775404255052,-218.48929144,0.00015799,3]
[419832256,1775404255061,-167.51186787,0.00015799,3]
[419832257,1775404255071,-151.0,0.00015799,3]
[419832258,1775404255080,-151.0,0.00015799,3]
[419832259,1775404255090,-151.0,0.00015799,3]
[419832260,1775404255100,-200.0,0.00015799,3]
[419832261,1775404255111,-500.0,0.00015799,3]
[419832262,1775404255120,-151.0,0.00015799,3]
[419832263,1775404255130,-200.0,0.00015799,3]
[419832264,1775404255140,-500.0,0.00015799,3]
[419832265,1775404255149,-151.0,0.00015799,3]
[419832266,1775404255158,-200.0,0.00015799,3]
[419832267,1775404255168,-500.0,0.00015799,3]
[419832268,1775404255178,-200.0,0.00015799,3]
[419832269,1775404255187,-500.0,0.00015799,3]
[419832270,1775404255197,-200.0,0.00015799,3]
[419832271,1775404255206,-668.65185757,0.00015799,3]
[419832272,1775404255216,-500.0,0.00015799,3]
[419832273,1775404255225,-200.0,0.00015799,3]
[419832274,1775404255235,-693.3919763,0.00015799,3]
[419832275,1775404255244,-500.0,0.00015799,3]
[419832276,1775404255254,-200.0,0.00015799,3]
[419832277,1775404255264,-719.04747942,0.00015799,3]
[419832278,1775404255274,-500.0,0.00015799,3]
[419832279,1775404255283,-205.79985871,0.00015799,3]
[419832280,1775404255292,-745.65223616,0.00015799,3]
[419832281,1775404255302,-500.0,0.00015799,3]
[419832282,1775404255312,-500.0,0.00015799,3]
[419832283,1775404255322,-773.2413689,0.00015799,3]
[419832284,1775404255332,-500.0,0.00015799,3]
[419832285,1775404255343,-245.70032162,0.00015799,3]
[419832286,1775404255353,-309.18885243,0.00015799,3]
[419832287,1775404255363,-1000.0,0.00015799,3]
[419832288,1775404255372,-170.0,0.00015799,3]
[419832289,1775404255383,-1000.0,0.00015799,3]
[419832290,1775404255394,-279.9045709,0.00015799,3]
[419832291,1775404255404,-170.0,0.00015799,3]
[419832292,1775404255416,-1000.0,0.00015799,3]
[419832293,1775404255425,-290.26104003,0.00015799,3]
[419832294,1775404255436,-170.0,0.00015799,3]
[419832295,1775404255446,-329.2835348,0.00015799,3]
[419832296,1775404255457,-1000.0,0.00015799,3]
[419832297,1775404255466,-301.00069851,0.00015799,3]
[419832298,1775404255476,-170.0,0.00015799,3]
[419832299,1775404255487,-284.74539875,0.00015799,3]
[419832300,1775404255496,-1000.0,0.00015799,3]
[419832301,1775404255507,-170.0,0.00015799,3]
[419832302,1775404255517,-170.0,0.00015799,3]
[419832303,1775404255526,-170.0,0.00015799,3]
[419832304,1775404255536,-174.60324019,0.00015799,3]
[419832305,1775404255546,-170.0,0.00015799,3]
[419832306,1775404255556,-170.0,0.00015799,3]
[419832307,1775404255566,-170.0,0.00015799,3]
[419832308,1775404255575,-170.0,0.00015799,3]
[419832309,1775404255586,-170.0,0.00015799,3]
[419832310,1775404255596,-2000.0,0.000158,2]
[419832311,1775404255605,-200.0,0.000158,2]
[419832312,1775404255615,-359.06722563,0.000158,2]
[419832313,1775404255625,-151.0,0.000158,2]
[419832314,1775404255634,-200.0,0.000158,2]
[419832315,1775404255644,-1000.0,0.000158,2]
[419832316,1775404255653,-1075.35,0.000158,2]
[419832317,1775404255663,-200.0,0.000158,2]
[419832318,1775404255673,-150.0,0.000158,2]
[419832319,1775404255682,-1539.49801699,0.00015801,2]
[419832320,1775404255691,-5888.0,0.00015802,2]
[419832321,1775404255700,-150.0,0.00015804,2]
[419832322,1775404255710,-150.0,0.00015804,2]
[419832323,1775404255720,-150.0,0.00015807,2]
[419832324,1775404255731,-11516.0,0.00015808,2]
[419832325,1775404255742,-150.0,0.00015813,2]
[419832326,1775404255751,-150.0,0.00015815,2]
[419832327,1775404255761,-500.0,0.00015816,2]
[419832328,1775404255770,-988.81,0.00015816,2]
[419832329,1775404255779,-554.52,0.00015816,2]
[419832330,1775404255789,-888.51,0.00015816,2]
[419832331,1775404255798,-500.0,0.00015816,2]
[419832332,1775404255807,-937.06,0.00015816,2]
[419832333,1775404255817,-533.3,0.00015816,2]
[419832334,1775404255826,-588.99,0.00015816,2]
[419832335,1775404255835,-1402.96,0.00015816,2]
[419832336,1775404255845,-969.24,0.00015816,2]
[419832337,1775404255854,-638.6,0.00015816,2]
[419832338,1775404255863,-1004.05,0.00015816,2]
[419832339,1775404255873,-873.89,0.00015816,2]
[419832340,1775404255882,-500.0,0.00015816,2]
[419832341,1775404255891,-725.46,0.00015817,2]
[419832342,1775404255901,-725.46,0.00015817,2]
[419832343,1775404255910,-725.46,0.00015817,2]
[419832344,1775404255920,-725.46,0.00015817,2]
[419832345,1775404255929,-725.62,0.00015817,2]
[419832346,1775404255939,-1772.17,0.00015817,2]
[419832347,1775404255949,-1772.17,0.00015817,2]
[419832348,1775404255958,-1772.17,0.00015817,2]
[419832349,1775404255968,-1772.17,0.00015817,2]
[419832350,1775404255977,-1772.3410465,0.00015817,2]
[419832351,1775404255987,-1249.03,0.00015817,2]
[419832352,1775404255996,-1249.03,0.00015817,2]
[419832353,1775404256005,-1249.03,0.00015817,2]
[419832354,1775404256015,-1249.03,0.00015817,2]
[419832355,1775404256024,-1249.17214758,0.00015817,2]
[419832356,1775404256033,-1122.33,0.00015817,2]
[419832357,1775404256043,-1122.33,0.00015817,2]
[419832358,1775404256052,-1122.33,0.00015817,2]
[419832359,1775404256062,-1122.33,0.00015817,2]
[419832360,1775404256071,-1122.48918003,0.00015817,2]
[419832361,1775404256081,-806.66,0.00015817,2]
[419832362,1775404256090,-806.66,0.00015817,2]
[419832363,1775404256100,-806.66,0.00015817,2]
[419832364,1775404256109,-806.66,0.00015817,2]
[419832365,1775404256119,-806.84950636,0.00015817,2]
[419832366,1775404256129,-1268.28,0.00015817,2]
[419832367,1775404256138,-1268.28,0.00015817,2]
[419832368,1775404256147,-1268.28,0.00015817,2]
[419832369,1775404256157,-1268.28,0.00015817,2]
[419832370,1775404256166,-1268.28484396,0.00015817,2]
[419832371,1775404256176,-673.65,0.00015817,2]
[419832372,1775404256185,-673.65,0.00015817,2]
[419832373,1775404256195,-673.65,0.00015817,2]
[419832374,1775404256205,-673.65,0.00015817,2]
[419832375,1775404256215,-673.70745143,0.00015817,2]
[419832376,1775404256225,-151.0,0.00015817,2]
[419832377,1775404256234,-151.0,0.00015817,2]
[419832378,1775404256244,-150.0,0.0001582,2]
[419832379,1775404256254,-150.0,0.00015822,2]
[419832380,1775404256264,-150.0,0.00015824,2]
[419832381,1775404256273,-5888.0,0.00015828,2]
[419832382,1775404256283,-150.0,0.00015829,2]
[419832383,1775404256292,-159.64590249,0.0001583,2]
[419832384,1775404256302,-150.0,0.00015832,2]
[419832385,1775404256311,-150.0,0.00015832,2]
[419832386,1775404256320,-205.49,0.00015832,2]
[419832387,1775404256330,-150.0,0.00015834,2]
[419832388,1775404256339,-5888.0,0.00015836,2]
[419832389,1775404256348,-166143.042,0.0001584,2]
[419832390,1775404256358,-2000.0,0.0001584,2]
[419832391,1775404256367,-2000.0,0.0001584,2]
[419832392,1775404256377,-2000.0,0.0001584,2]
[419832393,1775404256387,-2000.0,0.0001584,2]
[419832394,1775404256396,-2000.0,0.0001584,2]
[419832395,1775404256405,-2000.0,0.0001584,2]
[419832396,1775404256415,-150.0,0.00015842,2]
[419832397,1775404256424,-150.0,0.00015842,2]
[419832398,1775404256434,-205.49,0.00015845,2]
[419832399,1775404256444,-150.0,0.00015845,2]
[419832400,1775404256453,-5888.0,0.00015848,2]
[419832401,1775404256462,-5888.0,0.00015852,2]
[419832402,1775404256474,-150.0,0.00015855,2]
[419832403,1775404256484,-205.49,0.00015857,2]
[419832404,1775404256494,-150.0,0.00015857,2]
[419832405,1775404256504,-150.0,0.00015859,2]
[419832406,1775404256514,-150.0,0.0001586,2]
[419832407,1775404256524,-150.0,0.0001586,2]
[419832408,1775404256534,-1592.56,0.00015862,2]
[419832409,1775404256543,-150.0,0.00015865,2]
[419832410,1775404256553,-500.0,0.00015871,2]
[419832411,1775404256563,-200.0,0.00015871,2]
[419832412,1775404256572,-500.0,0.00015872,2]
[419832413,1775404256582,-200.0,0.00015872,2]
[419832414,1775404256591,-500.0,0.00015872,2]
[419832415,1775404256600,-500.0,0.00015872,2]
[419832416,1775404256610,-500.0,0.00015872,2]
[419832417,1775404256619,-200.0,0.00015872,2]
[419832418,1775404256629,-200.0,0.00015872,2]
[419832419,1775404256639,-5888.0,0.00015875,2]
[419832420,1775404256649,-150.0,0.00015875,2]
[419832421,1775404256659,-150.0,0.00015877,2]
[419832422,1775404256668,-150.0,0.00015877,2]
[419832423,1775404256678,-350.0,0.00015881,2]
[419832424,1775404256688,-150.0,0.00015886,2]
[419832425,1775404256698,-500.0,0.00015887,2]
[419832426,1775404256707,-500.0,0.00015887,2]
[419832427,1775404256717,-151.0,0.00015887,2]
[419832428,1775404256727,-151.0,0.00015887,2]
[419832429,1775404256737,-150.0,0.00015887,2]
[419832430,1775404256747,-150.0,0.00015888,2]
[419832431,1775404256756,-150.0,0.00015888,2]
[419832432,1775404256766,-1161.9,0.0001589,2]
[419832433,1775404256775,-250.0,0.0001589,2]
[419832434,1775404256785,-250.0,0.0001589,2]
[419832435,1775404256793,-250.0,0.0001589,2]
[419832436,1775404256803,-2000.0,0.0001589,2]
[419832437,1775404256813,-2500.0,0.0001589,2]
[419832438,1775404256823,-2500.0,0.0001589,2]
[419832439,1775404256832,-950.63286364,0.0001589,2]
[419832440,1775404256842,-502.58762782,0.0001589,2]
[419832441,1775404256852,-2006.37622858,0.0001589,2]
[419832442,1775404256861,-2500.0,0.0001589,2]
[419832443,1775404256871,-823.00574972,0.0001589,2]
[419832444,1775404256880,-2500.0,0.0001589,2]
[419832445,1775404256889,-1100.33490613,0.0001589,2]
[419832446,1775404256899,-150.0,0.00015895,2]
[419832447,1775404256909,-4000.0,0.00015895,2]
[419832448,1775404256919,-150.0,0.00015896,2]
[419832449,1775404256929,-150.0,0.00015897,2]
[419832450,1775404256938,-253.729973,0.00015897,2]
[419832451,1775404256948,-1233.74,0.00015899,2]
[419832452,1775404256959,-537.2,0.00015899,2]
[419832453,1775404256970,-737.59,0.00015899,2]
[419832454,1775404256980,-53617.5036391,0.00015899,2]
[419832455,1775404256990,-500.0,0.00015899,2]
[419832456,1775404257001,-500.0,0.00015899,2]
[419832457,1775404257011,-500.0,0.00015899,2]
[419832458,1775404257021,-525.34921118,0.00015899,2]
[419832459,1775404257031,-988.81,0.00015899,2]
[419832460,1775404257042,-988.81,0.00015899,2]
[419832461,1775404257053,-988.81,0.00015899,2]
[419832462,1775404257063,-988.81,0.00015899,2]
[419832463,1775404257072,-988.81,0.00015899,2]
[419832464,1775404257083,-988.94,0.00015899,2]
[419832465,1775404257094,-554.52,0.00015899,2]
[419832466,1775404257106,-554.52,0.00015899,2]
[419832467,1775404257117,-554.52,0.00015899,2]
[419832468,1775404257127,-554.52,0.00015899,2]
[419832469,1775404257137,-554.52,0.00015899,2]
[419832470,1775404257147,-888.51,0.00015899,2]
[419832471,1775404257158,-554.73,0.00015899,2]
[419832472,1775404257167,-888.51,0.00015899,2]
[419832473,1775404257178,-888.51,0.00015899,2]
[419832474,1775404257187,-888.51,0.00015899,2]
[419832475,1775404257198,-888.51,0.00015899,2]
[419832476,1775404257207,-888.54,0.00015899,2]
[419832477,1775404257218,-500.0,0.00015899,2]
[419832478,1775404257228,-500.0,0.00015899,2]
[419832479,1775404257239,-500.0,0.00015899,2]
[419832480,1775404257249,-277.80362492,0.00015899,2]
[419832481,1775404257260,-937.06,0.00015899,2]
[419832482,1775404257269,-937.06,0.00015899,2]
[419832483,1775404257280,-937.06,0.00015899,2]
[419832484,1775404257290,-937.06,0.00015899,2]
[419832485,1775404257300,-937.06,0.00015899,2]
[419832486,1775404257311,-937.18513851,0.00015899,2]
[419832487,1775404257320,-151.0,0.00015899,2]
[419832488,1775404257330,-151.0,0.00015899,2]
[419832489,1775404257340,-151.0,0.00015899,2]
[419832490,1775404257349,-533.3,0.00015899,2]
[419832491,1775404257361,-533.3,0.00015899,2]
[419832492,1775404257370,-533.3,0.00015899,2]
[419832493,1775404257380,-533.3,0.00015899,2]
[419832494,1775404257390,-533.3,0.00015899,2]
[419832495,1775404257400,-533.45,0.00015899,2]
[419832496,1775404257410,-588.99,0.00015899,2]
[419832497,1775404257419,-588.99,0.00015899,2]
[419832498,1775404257429,-588.99,0.00015899,2]
[419832499,1775404257439,-1402.96,0.00015899,2]
[419832500,1775404257449,-588.99,0.00015899,2]
[419832501,1775404257460,-1402.96,0.00015899,2]
[419832502,1775404257471,-588.99,0.00015899,2]
[419832503,1775404257480,-1402.96,0.00015899,2]
[419832504,1775404257490,-1402.96,0.00015899,2]
[419832505,1775404257500,-1402.96,0.00015899,2]
[419832506,1775404257511,-1403.15,0.00015899,2]
[419832507,1775404257521,-969.24,0.00015899,2]
[419832508,1775404257531,-969.24,0.00015899,2]
[419832509,1775404257541,-969.24,0.00015899,2]
[419832510,1775404257552,-969.24,0.00015899,2]
[419832511,1775404257562,-969.27278756,0.00015899,2]
[419832512,1775404257572,-638.6,0.00015899,2]
[419832513,1775404257581,-638.6,0.00015899,2]
[419832514,1775404257591,-638.6,0.00015899,2]
[419832515,1775404257602,-638.6,0.00015899,2]
[419832516,1775404257613,-638.6,0.00015899,2]
[419832517,1775404257623,-638.74,0.00015899,2]
[419832518,1775404257632,-1004.05,0.00015899,2]
[419832519,1775404257642,-1004.05,0.00015899,2]
[419832520,1775404257652,-1004.05,0.00015899,2]
[419832521,1775404257662,-1004.05,0.00015899,2]
[419832522,1775404257672,-1004.05,0.00015899,2]
[419832523,1775404257683,-1004.17,0.00015899,2]
[419832524,1775404257694,-873.89,0.00015899,2]
[419832525,1775404257704,-873.89,0.00015899,2]
[419832526,1775404257714,-873.89,0.00015899,2]
[419832527,1775404257725,-873.89,0.00015899,2]
[419832528,1775404257735,-874.11,0.00015899,2]
[419832529,1775404257746,-500.0,0.00015899,2]
[419832530,1775404257756,-500.0,0.00015899,2]
[419832531,1775404257765,-500.0,0.00015899,2]
[419832532,1775404257774,-500.0,0.00015899,2]
[419832533,1775404257783,-500.0,0.00015899,2]
[419832534,1775404257795,-500.0,0.00015899,2]
[419832535,1775404257804,-500.0,0.00015899,2]
[419832536,1775404257815,-500.0,0.00015899,2]
[419832537,1775404257826,-500.0,0.00015899,2]
[419832538,1775404257838,-500.0,0.00015899,2]
[419832539,1775404257848,-500.0,0.00015899,2]
[419832540,1775404257860,-500.0,0.00015899,2]
[419832541,1775404257871,-500.0,0.00015899,2]
[419832542,1775404257881,-500.0,0.00015899,2]